Cogmind - Beta 14 @@@ ROGUE MODE // 2024.10.25 @ 08:43:28 Player: KURIIRI Result: Destroyed by H-88 Terminator with KE Penetrator Performance ------------- Evolutions (9) 4500 Regions Visited (16) 3200 Robots Destroyed (0) 0 Value Destroyed (70) 70 Prototype IDs (28) 560 Alien Tech Used (0) 0 Bonus (9966) 9966 TOTAL SCORE: 18296 Bonus ------- Pacifist 7906 Follower Combat Kills 60 Met Sigix 2000 Cogmind --------- Core Integrity 0/1600 Matter 244/300 Energy 100/100 System Corruption 8% Temperature Cool (0) Movement Core (200) Ox3 Location -1/Access Parts ------- > --- POWER (2) -------- (None) > --- PROPULSION (7) --- (None) > --- UTILITY (14) ----- Medium Storage Unit Experimental Optical Array Advanced Signal Interpreter Advanced Hacking Suite System Shield Improved System Guard > --- WEAPON (2) ------- (None) > --- INVENTORY (10) --- Advanced Sensor Array Improved System Restoration Module Improved System Restoration Module Sigix Containment Pod Peak State ------------ > --- POWER ------------ Micro Antimatter Reactor Micro Antimatter Reactor > --- PROPULSION ------- Field Propulsion Array Field Propulsion Array Field Propulsion Array Q-thruster > --- UTILITY ---------- Large Storage Unit Triangulator Experimental Optical Array Advanced Sensor Array Advanced Signal Interpreter ECM Suite Improved Reaction Control System Hardened Medium Armor Plating Experimental Thermal Shield Advanced Hacking Suite System Shield Improved System Guard > --- WEAPON ----------- Power Sword > --- INVENTORY -------- Micro Antimatter Reactor Diametric Drive Q-thruster Q-thruster Medium Storage Unit Advanced Sensor Array Improved System Restoration Module Improved Plasma Cutter Sigix Containment Pod [Rating: 136] Favorites ----------- Power Micro Antimatter Reactor Engine Light Angular Momentum Engine Power Core Micro Fission Core Reactor Micro Antimatter Reactor Propulsion Field Propulsion Array Flight Unit Field Propulsion Array Utility Advanced Signal Interpreter Device Advanced Sensor Array Storage Medium Storage Unit Processor Advanced Signal Interpreter Hackware System Shield Protection Hardened Medium Armor Plating Weapon Power Sword Special Weapon Mining Laser Impact Weapon Powered Hammer Slashing Weapon Power Sword Build | -11 -10 -10 -9 -8 -7 -7 -7 -6 -6 -6 -5 -4 -3 -3 -2 -1 ------- Run | Yrd Mat Min Mat Mat Fac Was Fac Fac Was Fac Fac Fac Res Qua Res Acc Slots Evolved 18 | . . . 2 2 2 . . 2 . . 2 2 2 . 2 2 Power 1 | . . . . . . . . . . . . . 1 . . . Propulsion 5 | . . . 1 . 1 . . 1 . . . 1 . . 1 . Utility 12 | . . . 1 2 1 . . 1 . . 2 1 1 . 1 2 Weapon . | . . . . . . . . . . . . . . . . . Parts Attached 130 | . 2 3 1 6 10 . 9 6 3 8 10 26 20 1 7 18 Power 16 | . . . . . 1 . 2 1 3 . . 2 4 . 1 2 Engine 4 | . . . . . . . 1 1 1 . . 1 . . . . Core 4 | . . . . . 1 . 1 . 1 . . . 1 . . . Reactor 8 | . . . . . . . . . 1 . . 1 3 . 1 2 Propulsion 28 | . . 1 1 1 3 . 1 2 . 2 2 5 3 1 1 5 Treads . | . . . . . . . . . . . . . . . . . Leg . | . . . . . . . . . . . . . . . . . Wheel . | . . . . . . . . . . . . . . . . . Hover . | . . . . . . . . . . . . . . . . . Flight 28 | . . 1 1 1 3 . 1 2 . 2 2 5 3 1 1 5 Utility 78 | . 2 2 . 4 5 . 5 3 . 6 8 18 12 . 5 8 Device 50 | . 1 1 . 1 4 . 1 1 . 4 6 14 10 . 3 4 Storage 4 | . . . . . . . 1 . . . . 1 . . . 2 Processor 9 | . . . . 2 . . 3 1 . . 1 . 1 . . 1 Hackware 11 | . . . . 1 1 . . 1 . 1 1 3 1 . 1 1 Protection 4 | . 1 1 . . . . . . . 1 . . . . 1 . Artifact . | . . . . . . . . . . . . . . . . . Weapon 8 | . . . . 1 1 . 1 . . . . 1 1 . . 3 Energy Gun . | . . . . . . . . . . . . . . . . . Energy Cannon . | . . . . . . . . . . . . . . . . . Ballistic Gun . | . . . . . . . . . . . . . . . . . Ballistic Cannon . | . . . . . . . . . . . . . . . . . Launcher . | . . . . . . . . . . . . . . . . . Special Weapon 2 | . . . . 1 . . . . . . . . . . . 1 Impact Weapon 2 | . . . . . 1 . 1 . . . . . . . . . Slashing Weapon 4 | . . . . . . . . . . . . 1 1 . . 2 Piercing Weapon . | . . . . . . . . . . . . . . . . . Special Melee Weapon . | . . . . . . . . . . . . . . . . . Unidentified Prototypes 14 | . . . . . 1 . 2 1 1 2 2 2 2 . . 1 Parts Lost 36 | . 1 . . 1 . . . . . 1 2 . 5 2 4 20 Power 4 | . . . . . . . . . . . . . . . 1 3 Propulsion 12 | . . . . 1 . . . . . 1 1 . . 1 . 8 Utility 18 | . 1 . . . . . . . . . 1 . 5 1 3 7 Weapon 2 | . . . . . . . . . . . . . . . . 2 Highest Loss Streak 13 | . 1 . . 1 . . . . . 1 2 . 2 2 2 13 To Critical Strikes . | . . . . . . . . . . . . . . . . . Average Slot Usage (%) 79 | . 14 21 22 44 84 92 86 89 93 92 93 79 81 76 76 64 Engine 1 | . . . . . . . . 1 6 6 5 2 . . . . Core 2 | . . . . . 7 7 7 4 . . . . 4 4 3 . Reactor 2 | . . . . . . . . . . . . 2 3 4 4 6 Flight 21 | . . 5 11 15 26 30 30 29 33 32 28 16 17 18 17 14 Device 16 | . 5 2 . 2 15 23 8 6 6 12 17 21 22 23 22 15 Storage 4 | . . . . . . . 7 6 6 6 5 5 4 4 4 4 Processor 12 | . . . . 7 9 7 13 13 13 13 17 15 12 9 8 11 Hackware 10 | . . . . 3 11 15 15 19 20 13 10 8 9 4 7 8 Protection 1 | . 8 14 11 9 4 . . . . . . . . . 2 2 Impact Weapon 1 | . . . . . 2 7 2 6 6 6 5 . . . . . Slashing Weapon 2 | . . . . . . . . . . . . 4 3 4 4 1 Peak Build Rating 136 | . 2 7 6 18 37 37 41 56 57 65 76 107 124 118 130 136 Average Rating 84 | . 1 3 4 10 29 37 35 47 55 62 72 99 118 113 122 116 On Entrance 49 | . . 1 4 6 18 37 37 41 56 56 65 65 107 118 115 109 Naked Turns 25 | . 25 . . . . . . . . . . . . . . . Heaviest Build 55 | . 2 6 3 5 13 13 21 23 26 24 26 39 45 44 51 55 Greatest Support 53 | 3 3 4 8 9 20 20 21 28 28 31 29 45 46 46 53 53 Greatest Overweight (x) 3 | . . 1 . . . . . . . 1 . . . . . 3 Average Overweight (x) . | . . . . . . . . . . . . . . . . . Largest Inventory Capacity 15 | 5 5 5 5 5 5 5 10 10 10 10 10 15 15 15 15 15 Average Capacity 11 | 5 5 5 5 5 5 5 9 10 10 10 10 11 15 15 15 14 Most Carried 15 | . 4 5 5 5 5 5 10 10 10 10 10 13 15 15 15 12 Average Carried 10 | . 1 4 5 3 4 5 8 8 10 9 9 10 13 13 13 10 Final Capacity 15 | 5 5 5 5 5 5 5 10 10 10 10 10 15 15 15 15 10 Final Carried 15 | . 4 5 5 4 5 5 8 10 10 10 9 13 13 15 13 5 Class Distribution -------------------- 41% | Hacker-Ninja 15% | Hacker-Sprinter 13% | Infiltrator-Ninja 13% | Hacker-Scout 4% | Ninja 4% | Mutant Dominant Class ---------------- Mutant | -10/Materials Mutant | -10/Mines Mutant | -9/Materials Mutant | -8/Materials Hacker-Ninja | -7/Factory Hacker-Ninja | -7/Waste Hacker-Sprinter | -7/Factory Hacker-Sprinter | -6/Factory Hacker-Sprinter | -6/Waste Hacker-Scout | -6/Factory Hacker-Ninja | -5/Factory Hacker-Ninja | -4/Factory Hacker-Ninja | -3/Research Infiltrator-Ninja | -3/Quarantine Infiltrator-Ninja | -2/Research Hacker-Scout | -1/Access Resources | -11 -10 -10 -9 -8 -7 -7 -7 -6 -6 -6 -5 -4 -3 -3 -2 -1 ----------- Run | Yrd Mat Min Mat Mat Fac Was Fac Fac Was Fac Fac Fac Res Qua Res Acc Matter Collected 1320 | 185 19 34 . . 14 . 170 93 59 86 41 125 136 . 224 134 Remotely . | . . . . . . . . . . . . . . . . . Salvage Created . | . . . . . . . . . . . . . . . . . Parts . | . . . . . . . . . . . . . . . . . Haulers Intercepted . | . . . . . . . . . . . . . . . . . Recyclers Shooed . | . . . . . . . . . . . . . . . . . Parts Field Recycled . | . . . . . . . . . . . . . . . . . Retrieved Matter . | . . . . . . . . . . . . . . . . . Parts Self-Destructed . | . . . . . . . . . . . . . . . . . Prevented . | . . . . . . . . . . . . . . . . . Kills | -11 -10 -10 -9 -8 -7 -7 -7 -6 -6 -6 -5 -4 -3 -3 -2 -1 ------- Run | Yrd Mat Min Mat Mat Fac Was Fac Fac Was Fac Fac Fac Res Qua Res Acc Combat Hostiles Destroyed . | . . . . . . . . . . . . . . . . . Classes Destroyed . | . . . . . . . . . . . . . . . . . Best Kill Streak . | . . . . . . . . . . . . . . . . . Combat Bots Only . | . . . . . . . . . . . . . . . . . Max Kills in Single Turn . | . . . . . . . . . . . . . . . . . Gunslinging . | . . . . . . . . . . . . . . . . . Exploded . | . . . . . . . . . . . . . . . . . Melee . | . . . . . . . . . . . . . . . . . Uniques/NPCs Destroyed . | . . . . . . . . . . . . . . . . . Combat | -11 -10 -10 -9 -8 -7 -7 -7 -6 -6 -6 -5 -4 -3 -3 -2 -1 -------- Run | Yrd Mat Min Mat Mat Fac Was Fac Fac Was Fac Fac Fac Res Qua Res Acc Hostile Shots Fired 562 | . 24 2 12 16 4 . 19 61 . 2 9 23 61 19 75 235 Missed 325 | . 8 . 8 10 2 . 16 37 . 1 7 12 36 11 52 125 Damage Taken 5603 | 2 136 26 50 83 65 . 16 442 . 16 143 177 605 312 448 3082 Core 2406 | 2 95 21 40 52 21 . 6 226 . . 46 32 102 96 44 1623 Absorbed by Shields . | . . . . . . . . . . . . . . . . . Redirected to Shielding 22 | . 17 5 . . . . . . . . . . . . . . Ignored by Resistances 98 | . . . . . . . . . . . . . . . . 98 Regen/Repaired (Parts) 246 | . . . . . . . . . . 138 16 49 25 . . 18 Core Remaining (%) 87 | 99 . 52 90 90 . . 96 . . 73 95 97 . 84 96 . Volleys Fired 1 | . . . . 1 . . . . . . . . . . . . Largest 1 | . . . . 1 . . . . . . . . . . . . Hottest 100 | . . . . 100 . . . . . . . . . . . . Shots Fired 1 | . . . . 1 . . . . . . . . . . . . Gun . | . . . . . . . . . . . . . . . . . Cannon . | . . . . . . . . . . . . . . . . . Launcher . | . . . . . . . . . . . . . . . . . Special 1 | . . . . 1 . . . . . . . . . . . . Kinetic . | . . . . . . . . . . . . . . . . . Thermal 1 | . . . . 1 . . . . . . . . . . . . Explosive . | . . . . . . . . . . . . . . . . . Electromagnetic . | . . . . . . . . . . . . . . . . . Robot Hit Streak . | . . . . . . . . . . . . . . . . . Robot Miss Streak . | . . . . . . . . . . . . . . . . . Penetration Max . | . . . . . . . . . . . . . . . . . Secondary Targets . | . . . . . . . . . . . . . . . . . Shots Hit Robots . | . . . . . . . . . . . . . . . . . Core Hits . | . . . . . . . . . . . . . . . . . Critical Kills . | . . . . . . . . . . . . . . . . . Critical Parts Destroyed . | . . . . . . . . . . . . . . . . . Critical Strikes . | . . . . . . . . . . . . . . . . . Melee Attacks 153 | . . . . . 2 . 2 13 . 15 11 42 35 14 13 6 Impact 44 | . . . . . 2 . 2 13 . 15 11 1 . . . . Slashing 109 | . . . . . . . . . . . . 41 35 14 13 6 Piercing . | . . . . . . . . . . . . . . . . . Sneak Attacks . | . . . . . . . . . . . . . . . . . Combat Hostiles . | . . . . . . . . . . . . . . . . . Follow-up Attacks . | . . . . . . . . . . . . . . . . . Damage Inflicted 15 | 4 6 . . . . . . . . . . . . . . 5 Guns . | . . . . . . . . . . . . . . . . . Cannons . | . . . . . . . . . . . . . . . . . Explosions . | . . . . . . . . . . . . . . . . . Melee . | . . . . . . . . . . . . . . . . . Ramming 15 | 4 6 . . . . . . . . . . . . . . 5 Kinetic . | . . . . . . . . . . . . . . . . . Thermal . | . . . . . . . . . . . . . . . . . Explosive . | . . . . . . . . . . . . . . . . . Electromagnetic . | . . . . . . . . . . . . . . . . . Impact . | . . . . . . . . . . . . . . . . . Slashing . | . . . . . . . . . . . . . . . . . Piercing . | . . . . . . . . . . . . . . . . . Highest Corruption 9 | . . . . . . 8 8 2 2 6 . . 8 9 . 8 Average Corruption 5 | . . . . . . 8 8 1 2 3 . . 8 8 . 3 Corruption Purged . | . . . . . . . . . . . . . . . . . Corruption Blocked . | . . . . . . . . . . . . . . . . . Effects 50 | . . . . . . 1 12 2 1 12 . . 7 15 . . Message Errors 12 | . . . . . . . 4 . . 3 . . . 5 . . Matter Fused 9 | . . . . . . . 2 1 . 4 . . . 2 . . Heat Flow Errors 7 | . . . . . . 1 2 . . . . . 1 3 . . Energy Discharges 10 | . . . . . . . 4 . . 1 . . 3 2 . . Parts Rejected 1 | . . . . . . . . . . . . . 1 . . . Data Loss (minor) 7 | . . . . . . . . 1 1 2 . . 2 1 . . Data Loss (major) 1 | . . . . . . . . . . 1 . . . . . . Alerts 3 | . . . . . . . . . . 1 . . . 2 . . Overload Shots . | . . . . . . . . . . . . . . . . . Overflow Damage 27 | . . . . . . . . . . . . . . 27 . . Projectiles . | . . . . . . . . . . . . . . . . . Explosions 27 | . . . . . . . . . . . . . . 27 . . Melee . | . . . . . . . . . . . . . . . . . Knockbacks . | . . . . . . . . . . . . . . . . . Impact . | . . . . . . . . . . . . . . . . . Kinetic . | . . . . . . . . . . . . . . . . . Secondary . | . . . . . . . . . . . . . . . . . Self-Inflicted Damage 141 | 2 3 . . . . . . . . . . . . 135 . 1 Shots 1 | . . . . . . . . . . . . . . 1 . . Rammed 6 | 1 1 . . . . . . . . . . . . . . 4 Targets Rammed 6 | 1 1 . . . . . . . . . . . . . . 4 Kicked . | . . . . . . . . . . . . . . . . . Crushed . | . . . . . . . . . . . . . . . . . Highest Temperature 357 | . . . . 2 2 99 357 10 . . 278 . 226 234 39 3 Average Temperature 77 | . . . . 2 2 42 121 4 . . 129 . 71 99 9 2 Received Heat Transfer 399 | . . 15 27 63 . . . 45 . . . . 69 30 63 87 Siege Activations . | . . . . . . . . . . . . . . . . . Robots Corrupted . | . . . . . . . . . . . . . . . . . Combat Hostiles . | . . . . . . . . . . . . . . . . . Parts Fried . | . . . . . . . . . . . . . . . . . Impact Corruptions . | . . . . . . . . . . . . . . . . . Robots Melted . | . . . . . . . . . . . . . . . . . Combat Hostiles . | . . . . . . . . . . . . . . . . . Parts Melted . | . . . . . . . . . . . . . . . . . Heat Transferred . | . . . . . . . . . . . . . . . . . Parts Sabotaged . | . . . . . . . . . . . . . . . . . Parts Stolen . | . . . . . . . . . . . . . . . . . Parts Stripped . | . . . . . . . . . . . . . . . . . Power Chain Reactions . | . . . . . . . . . . . . . . . . . Alert | -11 -10 -10 -9 -8 -7 -7 -7 -6 -6 -6 -5 -4 -3 -3 -2 -1 ------- Run | Yrd Mat Min Mat Mat Fac Was Fac Fac Was Fac Fac Fac Res Qua Res Acc Peak Influence 501 | . 35 80 144 291 313 138 247 456 159 193 250 333 225 260 229 501 Initial 161 | . . 9 31 60 132 78 96 44 159 111 1 28 161 20 18 72 Average 126 | . 14 70 91 154 198 111 137 118 159 101 103 119 85 174 102 213 Maximum Alert Level 2 | . . . . 1 1 . 1 2 . . 1 1 1 1 1 2 Low Security (%) 76 | 100 100 100 100 75 43 100 79 81 100 100 77 70 89 53 97 53 Level 1 22 | . . . . 24 56 . 20 10 . . 22 29 10 47 2 36 Level 2 1 | . . . . . . . . 8 . . . . . . . 10 Level 3 . | . . . . . . . . . . . . . . . . . Level 4 . | . . . . . . . . . . . . . . . . . Level 5 . | . . . . . . . . . . . . . . . . . High Security . | . . . . . . . . . . . . . . . . . Max Security . | . . . . . . . . . . . . . . . . . Squads Dispatched 55 | . 1 . 2 3 7 . 2 6 . 3 5 10 5 4 2 5 Investigation 39 | . 1 . 1 2 6 . 1 5 . 2 4 8 2 3 1 3 Extermination 8 | . . . . . . . 1 . . 1 1 2 1 . 1 1 Reinforcement 8 | . . . 1 1 1 . . 1 . . . . 2 1 . 1 Assault . | . . . . . . . . . . . . . . . . . Garrison . | . . . . . . . . . . . . . . . . . Intercept . | . . . . . . . . . . . . . . . . . Searches Triggered 1 | . . . . . . . . . . . . . . . . 1 Construction Impeded . | . . . . . . . . . . . . . . . . . Haulers Reinforced . | . . . . . . . . . . . . . . . . . Active Scanning Responses . | . . . . . . . . . . . . . . . . . Cargo Convoy Interrupts . | . . . . . . . . . . . . . . . . . Stealth | -11 -10 -10 -9 -8 -7 -7 -7 -6 -6 -6 -5 -4 -3 -3 -2 -1 --------- Run | Yrd Mat Min Mat Mat Fac Was Fac Fac Was Fac Fac Fac Res Qua Res Acc Distress Signals 22 | . . . 1 3 . . . 4 . . 1 . 5 1 3 4 Communications Jammed 20 | . . . . . 1 . . . . . . . 7 5 7 . Distress Signals 20 | . . . . . 1 . . . . . . . 7 5 7 . Times Spotted 298 | . 5 2 10 14 6 6 8 41 . 9 18 24 45 15 34 61 Peak Tracking Total 23 | . 4 2 9 14 3 6 6 11 . 4 7 6 7 10 20 23 Tactical Retreats 58 | . 1 . 1 2 1 . 2 9 . 1 3 6 14 2 4 12 Traps | -11 -10 -10 -9 -8 -7 -7 -7 -6 -6 -6 -5 -4 -3 -3 -2 -1 ------- Run | Yrd Mat Min Mat Mat Fac Was Fac Fac Was Fac Fac Fac Res Qua Res Acc Traps Triggered 9 | . . . . . 2 . 2 2 . 2 . . 1 . . . Indirectly . | . . . . . . . . . . . . . . . . . Trap Hack Attempts . | . . . . . . . . . . . . . . . . . Triggered . | . . . . . . . . . . . . . . . . . Disarmed . | . . . . . . . . . . . . . . . . . Reprogrammed . | . . . . . . . . . . . . . . . . . Reused . | . . . . . . . . . . . . . . . . . Traps Extracted . | . . . . . . . . . . . . . . . . . Installed . | . . . . . . . . . . . . . . . . . Triggered . | . . . . . . . . . . . . . . . . . Machines | -11 -10 -10 -9 -8 -7 -7 -7 -6 -6 -6 -5 -4 -3 -3 -2 -1 ---------- Run | Yrd Mat Min Mat Mat Fac Was Fac Fac Was Fac Fac Fac Res Qua Res Acc Machines Disabled 7 | . . . . . . . 1 . . . . 1 . 5 . . Max in Single Turn 1 | . . . . . . . 1 . . . . 1 . 1 . . Garrison Access 11 | . . . . . . . 1 1 . 1 1 3 2 1 . 1 Machines Repaired . | . . . . . . . . . . . . . . . . . Machines Dismantled . | . . . . . . . . . . . . . . . . . Machines Sabotaged . | . . . . . . . . . . . . . . . . . Overloaded Fab Kills . | . . . . . . . . . . . . . . . . . Hacking | -11 -10 -10 -9 -8 -7 -7 -7 -6 -6 -6 -5 -4 -3 -3 -2 -1 --------- Run | Yrd Mat Min Mat Mat Fac Was Fac Fac Was Fac Fac Fac Res Qua Res Acc Machines Accessed 101 | . 1 1 2 3 6 . 3 9 . 10 10 19 12 13 2 10 Terminals 63 | . 1 . 2 2 4 . 2 4 . 8 5 10 6 12 2 5 Fabricators 8 | . . . . . . . . 2 . . 1 3 1 . . 1 Repair Stations 7 | . . . . . . . . . . 1 2 1 1 . . 2 Recycling Units 1 | . . . . . . . . . . . . . . . . 1 Scanalyzers 9 | . . . . 1 1 . . 2 . . 1 2 2 . . . Garrison Access 12 | . . . . . 1 . 1 1 . 1 1 3 2 1 . 1 Total Hacks 304 | . 6 1 9 11 19 . 5 31 . 38 41 52 34 28 5 24 Successful 140 | . 1 1 5 6 4 . 2 14 . 19 23 21 20 13 1 10 Failed 163 | . 5 . 4 5 15 . 3 17 . 18 18 31 14 15 4 14 Catastrophic 34 | . . . 1 1 6 . 1 6 . 6 2 4 1 3 1 2 Database Lockouts 1 | . . . . . . . . . . 1 . . . . . . Manual 148 | . 6 . 8 8 8 . 2 18 . 21 26 23 9 11 2 6 Terminals 207 | . 6 . 9 6 14 . 4 16 . 34 31 27 16 27 5 12 Fabricators 21 | . . . . . . . . 4 . . 1 10 3 . . 3 Repair Stations 17 | . . . . . . . . . . 3 4 2 2 . . 6 Recycling Units 1 | . . . . . . . . . . . . . . . . 1 Scanalyzers 36 | . . . . 5 2 . . 9 . . 3 6 11 . . . Garrison Access 21 | . . . . . 3 . 1 2 . 1 2 7 2 1 . 2 Terminal Hacks 48 | . . 1 2 . 2 . . 3 . 11 10 5 4 8 1 1 Record 3 | . . . . . . . . . . . . . 1 2 . . Part Schematic 5 | . . . . . . . . . . 2 2 1 . . . . Robot Schematic 1 | . . . . . . . . . . 1 . . . . . . Robot Analysis 1 | . . . . . . . . . . . . . . 1 . . Prototype ID Bank 5 | . . . . . . . . . . 3 . 1 . 1 . . Open Door 3 | . . 1 . . . . . . . . . . . 2 . . Level Access Points 2 | . . . 1 . . . . . . . 1 . . . . . Branch Access Points 3 | . . . . . . . . . . 1 2 . . . . . Terminal Index 1 | . . . . . . . . . . . 1 . . . . . Fabricator Index 1 | . . . . . . . . . . . 1 . . . . . Scanalyzer Index 1 | . . . . . . . . . . . 1 . . . . . Alert Level 4 | . . . . . . . . . . 1 . . 2 1 . . Unreport Threat 10 | . . . . . 1 . . 1 . 3 . 2 1 1 1 . Security Status 1 | . . . . . . . . . . . 1 . . . . . Extermination Status 1 | . . . . . . . . . . . 1 . . . . . Recall Extermination 1 | . . . . . . . . . . . . 1 . . . . Registered Components 1 | . . . . . 1 . . . . . . . . . . . Registered Prototypes 1 | . . . . . . . . 1 . . . . . . . . Zone Layout 3 | . . . 1 . . . . 1 . . . . . . . 1 Fabricator Hacks 10 | . . . . . . . . 2 . . 1 5 1 . . 1 Load Schematic 5 | . . . . . . . . . . . . 3 1 . . 1 Build 5 | . . . . . . . . 2 . . 1 2 . . . . Repair Station Hacks 11 | . . . . . . . . . . 2 3 2 2 . . 2 Scan Component 6 | . . . . . . . . . . 1 2 1 1 . . 1 Repair 5 | . . . . . . . . . . 1 1 1 1 . . 1 Recycling Unit Hacks 1 | . . . . . . . . . . . . . . . . 1 Retrieve Matter 1 | . . . . . . . . . . . . . . . . 1 Scanalyzer 15 | . . . . 2 . . . 2 . . 2 2 7 . . . Insert Component 7 | . . . . 1 . . . 1 . . 1 1 3 . . . Analyze 8 | . . . . 1 . . . 1 . . 1 1 4 . . . Garrison Access Hacks 9 | . . . . . . . 1 1 . 1 1 1 2 1 . 1 Seal Access 9 | . . . . . . . 1 1 . 1 1 1 2 1 . 1 Unauthorized Hacks 46 | . 1 . 3 4 2 . 1 6 . 5 6 6 4 4 . 4 Terminals 39 | . 1 . 3 3 1 . 1 4 . 5 5 4 4 4 . 4 Assimilate 7 | . . . . . . . . 1 . 2 1 1 1 1 . . Botnet 27 | . 1 . 2 2 1 . 1 3 . 2 4 2 2 3 . 4 Operators 5 | . . . 1 1 . . . . . 1 . 1 1 . . . Fabricators . | . . . . . . . . . . . . . . . . . Repair Stations . | . . . . . . . . . . . . . . . . . Recycling Units . | . . . . . . . . . . . . . . . . . Scanalyzers 5 | . . . . 1 1 . . 2 . . 1 . . . . . Extract 5 | . . . . 1 1 . . 2 . . 1 . . . . . Garrison Access 2 | . . . . . . . . . . . . 2 . . . . Jam 2 | . . . . . . . . . . . . 2 . . . . Data Cores Recovered . | . . . . . . . . . . . . . . . . . Used . | . . . . . . . . . . . . . . . . . Hacking Detections 79 | . 1 . 2 2 6 . 2 6 . 8 8 13 9 10 2 10 Full Trace Events 33 | . 1 . 2 1 5 . 1 3 . 2 3 6 2 3 1 3 Feedback Events 3 | . . . . . . . . 1 . . . . 1 1 . . Corruption 2 | . . . . . . . . 1 . . . . . 1 . . Hackware Fried 1 | . . . . . . . . . . . . . 1 . . . Feedback Blocked . | . . . . . . . . . . . . . . . . . Robot Schematics Acquired 1 | . . . . . . . . . . 1 . . . . . . Robots Built . | . . . . . . . . . . . . . . . . . Authchips . | . . . . . . . . . . . . . . . . . Time 152 | . . . . . . . . 152 . . . . . . . . Total Robot Build Rating . | . . . . . . . . . . . . . . . . . Part Schematics Acquired 42 | . . . . 3 1 . . 24 . 2 7 2 3 . . . Parts Built 6 | . . . . . . . . 2 . . 2 2 . . . . Authchips . | . . . . . . . . . . . . . . . . . Time 305 | . . . . . . . . 58 . . 106 141 . . . . Total Part Build Rating 38 | . . . . . . . . 14 . . 12 12 . . . . Parts Repaired 5 | . . . . . . . . . . 1 1 1 1 . . 1 Time 149 | . . . . . . . . . . 40 26 50 25 . . 8 Parts Recycled . | . . . . . . . . . . . . . . . . . Recycled Matter . | . . . . . . . . . . . . . . . . . Retrieved Matter . | . . . . . . . . . . . . . . . . . Retrieved Components . | . . . . . . . . . . . . . . . . . Parts Scanalyzed 7 | . . . . 1 . . . 1 . . 1 1 3 . . . Part Schematics Acquired 7 | . . . . 1 . . . 1 . . 1 1 3 . . . Parts Damaged . | . . . . . . . . . . . . . . . . . Bothacking | -11 -10 -10 -9 -8 -7 -7 -7 -6 -6 -6 -5 -4 -3 -3 -2 -1 ------------ Run | Yrd Mat Min Mat Mat Fac Was Fac Fac Was Fac Fac Fac Res Qua Res Acc Used RIF Installer . | . . . . . . . . . . . . . . . . . Robots Hacked . | . . . . . . . . . . . . . . . . . Non-combat . | . . . . . . . . . . . . . . . . . Combat . | . . . . . . . . . . . . . . . . . Robot Hacks Applied . | . . . . . . . . . . . . . . . . . Relay Couplers Released . | . . . . . . . . . . . . . . . . . Fabnet Peak Effective % . | . . . . . . . . . . . . . . . . . Robots Rewired . | . . . . . . . . . . . . . . . . . Allies Hacked . | . . . . . . . . . . . . . . . . . Hacks Repelled . | . . . . . . . . . . . . . . . . . Allies | -11 -10 -10 -9 -8 -7 -7 -7 -6 -6 -6 -5 -4 -3 -3 -2 -1 -------- Run | Yrd Mat Min Mat Mat Fac Was Fac Fac Was Fac Fac Fac Res Qua Res Acc Total Allies 8 | . . 2 . . . . . 1 . 2 1 . 1 1 . . Largest Group 3 | . . 2 . . . . . 1 . 2 3 . 1 1 . . Highest-Rated Group 78 | . . 46 . . . . . 26 . 52 78 . 26 26 . . Highest-Rated Ally 31 | . . 31 . . . . . 26 . 26 26 . 26 26 . . Total Orders 2 | . . . . . . . . . . . 2 . . . . . STAY 1 | . . . . . . . . . . . 1 . . . . . FOLLOW 1 | . . . . . . . . . . . 1 . . . . . Ally Attacks 5 | . . 5 . . . . . . . . . . . . . . Total Damage 83 | . . 83 . . . . . . . . . . . . . . Kills 2 | . . 2 . . . . . . . . . . . . . . Allies Corrupted 1 | . . . . . . . . . . . . . . 1 . . Allies Melted . | . . . . . . . . . . . . . . . . . Intel | -11 -10 -10 -9 -8 -7 -7 -7 -6 -6 -6 -5 -4 -3 -3 -2 -1 ------- Run | Yrd Mat Min Mat Mat Fac Was Fac Fac Was Fac Fac Fac Res Qua Res Acc Robot Analysis Total 1 | . . . . . . . . . . . . . . 1 . . Derelict Logs Recovered 1 | . . 1 . . . . . . . . . . . . . . Drone Launches . | . . . . . . . . . . . . . . . . . Drone Recoveries . | . . . . . . . . . . . . . . . . . Exploration | -11 -10 -10 -9 -8 -7 -7 -7 -6 -6 -6 -5 -4 -3 -3 -2 -1 ------------- Run | Yrd Mat Min Mat Mat Fac Was Fac Fac Was Fac Fac Fac Res Qua Res Acc Turns Passed 7872 | 15 77 108 54 105 369 53 425 645 84 525 729 2038 1119 400 361 765 Spaces Moved 15084 | 28 137 212 129 206 796 161 1181 1434 293 1353 1187 2771 2207 912 549 1528 Core 295 | 28 137 123 . . . . . . . . . . . . . 7 Treads . | . . . . . . . . . . . . . . . . . Legs . | . . . . . . . . . . . . . . . . . Wheels . | . . . . . . . . . . . . . . . . . Hover . | . . . . . . . . . . . . . . . . . Flight 14789 | . . 89 129 206 796 161 1181 1434 293 1353 1187 2771 2207 912 549 1521 Fastest Speed 23 | 50 50 40 34 32 28 28 28 26 27 23 27 27 31 31 31 26 Average Speed 30 | 50 50 47 39 34 28 28 28 26 27 27 27 32 31 31 31 35 Slowest Speed 200 | 50 50 100 40 35 32 28 28 28 27 101 27 37 37 31 31 200 Overloaded Moves 8 | . . . . . . . . . . 8 . . . . . . Propulsion Burnouts . | . . . . . . . . . . . . . . . . . Robots Hopped 170 | . . 4 3 5 11 . 12 12 2 9 4 9 27 16 10 46 Cave-ins Triggered 1 | . . . . . . . . . . . . . 1 . . . Exploration Rate (%) 44 | 4 31 61 26 34 26 92 30 39 95 35 23 64 61 79 20 42 Regions Visited 16 Branch Regions 2 Pre-discovered Areas . | . . . . . . . . . . . . . . . . . Known Exits Taken 8 | . . . 1 . . . 1 . . 1 1 1 1 1 1 . Unknown Exits Taken 4 | 1 1 1 . 1 . . . . . . . . . . . . Scrap Searched 2 | . . 2 . . . . . . . . . . . . . . Spaces Dug 140 | . . . . 1 2 . 1 13 . 15 11 40 35 6 13 3 Terrain Destroyed 173 | . . . . 1 2 . 1 13 . 15 11 40 35 39 13 3 Melee 139 | . . . . . 2 . 1 13 . 15 11 40 35 6 13 3 Projectile 1 | . . . . 1 . . . . . . . . . . . . AOE 33 | . . . . . . . . . . . . . . 33 . . Terrain Rammed . | . . . . . . . . . . . . . . . . . Walls Destroyed . | . . . . . . . . . . . . . . . . . Machines Disabled . | . . . . . . . . . . . . . . . . . Actions | -11 -10 -10 -9 -8 -7 -7 -7 -6 -6 -6 -5 -4 -3 -3 -2 -1 --------- Run | Yrd Mat Min Mat Mat Fac Was Fac Fac Was Fac Fac Fac Res Qua Res Acc Total 17852 | 28 143 213 127 230 923 168 1258 1658 293 1478 1569 3828 2545 992 708 1691 Wait 2467 | . . . 1 22 112 8 30 211 . 77 360 967 294 78 146 161 Move 14744 | 27 136 203 122 195 775 160 1156 1410 288 1334 1179 2752 2152 881 529 1445 Hop 156 | . . 4 3 5 10 . 12 12 2 9 3 9 27 14 9 37 Pick Up 58 | . 4 1 . . 8 . 6 4 . 7 3 9 7 3 2 4 Fast Attach 54 | . 2 3 1 4 2 . 3 2 . 2 3 15 9 . 2 6 Attach 40 | . . . . 2 7 . 1 1 . 1 3 3 7 1 3 11 Detach 13 | . . . . 1 1 . 2 1 . 1 . 2 3 . . 2 Swap 37 | . . . . . 1 . 5 3 3 6 4 8 4 . 2 1 Drop 61 | . . 2 . . 5 . 5 1 . 8 3 21 7 1 2 6 Fire 1 | . . . . 1 . . . . . . . . . . . . Melee 153 | . . . . . 2 . 2 13 . 15 11 42 35 14 13 6 Ram 6 | 1 1 . . . . . . . . . . . . . . 4 Kick . | . . . . . . . . . . . . . . . . . Crush . | . . . . . . . . . . . . . . . . . Escape Stasis 54 | . . . . . . . 36 . . 18 . . . . . . Rewire . | . . . . . . . . . . . . . . . . . Trap . | . . . . . . . . . . . . . . . . . Miscellaneous 8 | . . . . . . . . . . . . . . . . 8 Route ------- -11/Scrapyard -10/Materials -10/Mines (discovered 2 exits: *Mat / Exi) -9/Materials (discovered 3 exits: *Mat x3) -8/Materials -7/Factory -7/Waste -7/Factory (discovered 4 exits: *Fac x2 / *Low x2) -6/Factory (discovered 2 exits: *Fac x2) -6/Waste -6/Factory (discovered 4 exits: *Fac x2 / *Low x2) -5/Factory (discovered 6 exits: *Fac x4 / *Upp x2) -4/Factory (discovered 3 exits: *Res / *Upp / *Ext) -3/Research (discovered 3 exits: *Res / [*Arm] / *Qua) -3/Quarantine -2/Research -1/Access History --------- Turn | Location | Event 7 | -11/Scrapyard | Discovered new exit (range 15) 16 | -11/Scrapyard | Entered Materials 63 | -10/Materials | Discovered new exit (range 10) 93 | -10/Materials | Entered Mines 101 | -10/Mines | Identified exit to Exiles 126 | -10/Mines | Met a Derelict who couldn't figure out how to use a Trap Extractor 200 | -10/Mines | Discovered new exit (range 3) 201 | -10/Mines | Entered Materials 201 | -9/Materials | Evolved 2 slots: Propulsion x1, Utility x1 213 | -9/Materials | Identified exit to Materials 255 | -9/Materials | Entered another Materials area 255 | -8/Materials | Evolved 2 slots: Utility x2 320 | -8/Materials | Build established: Mutant 345 | -8/Materials | Discovered new exit (range 16) 360 | -8/Materials | Entered Factory 360 | -7/Factory | Evolved 2 slots: Propulsion x1, Utility x1 620 | -7/Factory | Discovered new exit (range 6) 729 | -7/Factory | Sucked down chute 729 | -7/Factory | Entered Waste 733 | -7/Waste | Spotted C-40 Crusher 741 | -7/Waste | Spotted C-40 Crusher 744 | -7/Waste | EMP discharged 744 | -7/Waste | Spotted C-40 Crusher 744 | -7/Waste | Spotted C-40 Crusher 760 | -7/Waste | Spotted C-40 Crusher 762 | -7/Waste | Spotted C-40 Crusher 768 | -7/Waste | Discovered new exit (range 11) 782 | -7/Waste | Entered Factory 942 | -7/Factory | Discovered new exit (range 7) 1016 | -7/Factory | Discovered new exit (range 16) 1044 | -7/Factory | Discovered new exit (range 15) 1100 | -7/Factory | Build established: Hacker-Sprinter 1113 | -7/Factory | Discovered new exit (range 13) 1192 | -7/Factory | Identified exit to Lower Caves 1204 | -7/Factory | Identified exit to Factory 1207 | -7/Factory | Entered another Factory area 1207 | -6/Factory | Evolved 2 slots: Propulsion x1, Utility x1 1270 | -6/Factory | Spotted B-75 Beast 1328 | -6/Factory | Discovered new exit (range 8) 1330 | -6/Factory | Identified exit to Factory 1815 | -6/Factory | Discovered exit to Factory (range 5) 1825 | -6/Factory | Fabricated Impulse Thruster? 1852 | -6/Factory | Sucked down chute 1852 | -6/Factory | Entered Waste 1852 | -6/Waste | The area was eerily silent 1925 | -6/Waste | Discovered new exit (range 13) 1931 | -6/Waste | Identified exit to Factory 1936 | -6/Waste | Entered Factory 1971 | -6/Factory | Discovered new exit (range 15) 1975 | -6/Factory | Identified exit to Lower Caves 2054 | -6/Factory | Repaired Cold Fusion Reactor 2136 | -6/Factory | Discovered exit to Factory (range 9) 2227 | -6/Factory | Build established: Hacker-Scout 2378 | -6/Factory | Discovered exit to Factory (range 19) 2439 | -6/Factory | Central database locked down 2461 | -6/Factory | Entered another Factory area 2461 | -5/Factory | Accompanied by 2 allies 2461 | -5/Factory | Evolved 2 slots: Utility x2 2494 | -5/Factory | Identified exit to Factory 2494 | -5/Factory | Identified exit to Upper Caves 2625 | -5/Factory | Repaired Biomechanical Wings 2917 | -5/Factory | Build established: Hacker-Ninja 2959 | -5/Factory | Fabricated Mic. Fission Core? 3190 | -5/Factory | Entered another Factory area 3190 | -4/Factory | Evolved 2 slots: Propulsion x1, Utility x1 3243 | -4/Factory | Repaired Lgt. Angular Momentum Engine 3371 | -4/Factory | Discovered new exit (range 6) 3372 | -4/Factory | Identified exit to Extension 3624 | -4/Factory | Discovered new exit (range 14) 3668 | -4/Factory | Spotted B-86 Titan 3669 | -4/Factory | Build established: Ninja 4023 | -4/Factory | Build established: Hacker-Ninja 4025 | -4/Factory | Fabricated Adv. Hacking Suite? 4300 | -4/Factory | Spotted B-86 Titan 4644 | -4/Factory | Discovered new exit (range 20) 4651 | -4/Factory | Identified exit to Upper Caves 4713 | -4/Factory | Fabricated Adv. Hacking Suite? 5228 | -4/Factory | Identified exit to Research 5228 | -4/Factory | Entered Research 5228 | -3/Research | Evolved 2 slots: Power x1, Utility x1 5298 | -3/Research | Discovered new exit (range 4) 5299 | -3/Research | Identified exit to Quarantine 5366 | -3/Research | Discovered new exit (range 22) 5508 | -3/Research | Adv. Hacking Suite fried by hacking feedback 5547 | -3/Research | Spotted B-86 Titan 5677 | -3/Research | Discovered new exit (range 13) 5686 | -3/Research | Identified exit to Research 5787 | -3/Research | Repaired Triangulator 6050 | -3/Research | Spotted B-86 Titan 6109 | -3/Research | Crushed by falling debris 6347 | -3/Research | Entered Quarantine 6486 | -3/Quarantine | Discovered exit to Research (range 11) 6619 | -3/Quarantine | Spotted Alpha 7 6647 | -3/Quarantine | Met incapacitated Sigix Warrior 6647 | -3/Quarantine | Lockdown squad dispatched 6649 | -3/Quarantine | Acquired the access code to the Sigix quarantine chamber 6649 | -3/Quarantine | Unlocked Sigix quarantine chamber 6651 | -3/Quarantine | Found Sigix Containment Pod 6693 | -3/Quarantine | Spotted Lightning 6747 | -3/Quarantine | Entered Research 6747 | -2/Research | Evolved 2 slots: Propulsion x1, Utility x1 6763 | -2/Research | Discovered new exit (range 22) 6829 | -2/Research | Identified exit to Access 6865 | -2/Research | Build established: Infiltrator-Ninja 6920 | -2/Research | Spotted B-90 Cyclops 7044 | -2/Research | Spotted B-90 Cyclops 7108 | -2/Research | Entered Access 7108 | -1/Access | Evolved 2 slots: Utility x2 7134 | -1/Access | Found Prototype Device 7134 | -1/Access | Identified Exp. Thermal Shield 7268 | -1/Access | Spotted B-99 Colossus 7502 | -1/Access | Repaired ECM Suite 7640 | -1/Access | Lost 3 parts (1p1u1w) 7715 | -1/Access | Spotted B-99 Colossus 7716 | -1/Access | Spotted B-99 Colossus 7800 | -1/Access | Core integrity fell below 50% 7833 | -1/Access | Lost 13 parts (2p6n5u) 7858 | -1/Access | Search patrols dispatched 7865 | -1/Access | Core integrity fell below 20% 7873 | -1/Access | Destroyed by H-88 Terminator with KE Penetrator Last Messages --------------- Plasma Cutter. 07852_ Imp. Plasma Cutter destroyed. 07855_ K-01 Serf collects debris. 07855_ K-01 Serf destroyed. 07858_ ALERT: Heightened foreign activity detected, multiple search patrols dispatched. 07859_ R-10 Processor collects Lgt. Ion Engine. 07864_ P-80 Master resets R-10 Processor, system corruption cleaned. 07864_ R-10 Processor collects Wheel. 07865_ Slammed into P-80 Master. 07867_ Penetrated by Slug. 07867_ Slammed into P-80 Master. 07869_ Penetrated by Slug. 07869_ Slug penetrates Terminal. 07869_ Slammed into P-80 Master. 07871_ Penetrated by Slug. 07871_ Slug penetrates Sealed Barrier. 07871_ Adv. Hacking Suite destroyed. 07873_ Penetrated by Slug. Map ----- +----------------------------------------------------+ | + T" ??????? | | # "" ??????? | | # ####### ##########????????????????? | | ## ######## ####?????#########????????? | | """ """ ## ## # # ??? ????????? | | """T""" ## ## # # ? ??????????? | | ########### ## # # """S"????????????? | | ########### ## # # """ """??????????? | | ## # + #???????? | | + # # * #???????? | | ####### ## # # #???????? | | ??????# ## # ####?##############???????? | | ??????# ## # #??????????????? #????????? | | ??????# ####+### ########?????? #????????? | | ??????# #???? #????????? | | ??????# #?? #????????? | | ??????###################### # #????????? | | ???????????????????????????# + #????????? | | ???????????????????????????# # #????????? | | ???????????????????????????# #?? #????????? | | ???????????????????????????# #????######????????? | | ???????????????????????????# #??????????????????? | | ????????????????????"####### #??????????????????? | | ????????????????????" phh#??????????????????? | | ????????????????????" #??????????????????? | | ??????????????" @p #??????????????????? | | ??????????????" #??????????????????? | | ?????????????" #??????????????????? | | ?????????????" #??????????????????? | | ?????????????" #??????????????????? | | ??????????????" % R #??????????????????? | | ????????????????????" "" #??????????????????? | | ????????????????????" " """ #??????????????????? | | ????????????????????"#######u #??????????????????? | | ???????????????????????????# #??????????????????? | | ???????????????????????????# #??????????????????? | | ???????????????????????????# #??????????????????? | | ???????????????????????????# #??????????????????? | | ???????????????????????????# +??????????????????? | | ???????????????????????????# #??????????????????? | | ???????????????????????????? #??????????????????? | | ???????????????????????????? #??????????????????? | | ???????????????????????????? #??????????????????? | | ???????????????????????????? #??????????????????? | | ???????????????????????????? ???????????????????? | | ?????????????????????????????????????????????????? | | ?????????????????????????????????????????????????? | | ?????????????????????????????????????????????????? | | ?????????????????????????????????????????????????? | | ?????????????????????????????????????????????????? | +----------------------------------------------------+ Best States ------------- Heat Dissipation 52 Energy Generation 33 Energy Capacity 240 Matter Stores 300 Matter Capacity 300 Sight Range 23 Robot Scan Range 16 Terrain Scan Range 20 Terrain Scan Density 210 ECM Strength 1 Jamming Range 14 Cloak Strength 2 Power Amplification 30 Corruption Containment 12 Armor Coverage 225 Resistance: TH 30 Core Shielding 20 Evasion (%) 75 Offensive Hacking 28 Defensive Hacking 20 Trap Extractor Capacity 6 Item Schematics ----------------- Imp. Sensor Array | -8/Materials | Scanalyzed Carbon-fiber Leg | -8/Materials | Extracted Utility Shielding | -8/Materials | Extracted Imp. Titanium Leg | -7/Factory | Extracted Hacking Suite | -6/Factory | Extracted Seismic Detector | -6/Factory | Extracted Remote Datajack | -6/Factory | Extracted System Guard | -6/Factory | Extracted Rocket Array | -6/Factory | Extracted Imp. Targeting Computer | -6/Factory | Extracted Imp. Carbon-fiber Leg | -6/Factory | Extracted Adv. Signal Interpreter | -6/Factory | Scanalyzed System Shield | -6/Factory | Extracted Gravmag Array | -6/Factory | Extracted Transport Network Coupler | -6/Factory | Extracted Powered Armor | -6/Factory | Extracted Great Axe | -6/Factory | Extracted Hvy. Laser | -6/Factory | Extracted Hvy. Pick | -6/Factory | Extracted Flak Gun | -6/Factory | Extracted Adv. Heat Sink | -6/Factory | Extracted Enh. Optical Array | -6/Factory | Extracted Hcp. Matter Pod | -6/Factory | Extracted Field Laser | -6/Factory | Extracted Cld. Aerolev Unit | -6/Factory | Extracted Magnetic Acceleration Cannon | -6/Factory | Extracted Gauss Cannon | -6/Factory | Extracted Arm. Leg | -6/Factory | Extracted Adv. Sensor Array | -6/Factory | Hacked Imp. Hacking Suite | -6/Factory | Hacked Adv. Hacking Suite | -5/Factory | Hacked Adv. System Shield | -5/Factory | Hacked Mic. Fission Core | -5/Factory | Scanalyzed Imp. Terrain Scan Processor | -5/Factory | Extracted Imp. Proton Missile Launcher | -5/Factory | Extracted Imp. Arc Projector | -5/Factory | Extracted Adv. Targeting Computer | -5/Factory | Extracted Field Propulsion Array | -4/Factory | Scanalyzed Imp. Cloaking Device | -4/Factory | Hacked Diametric Drive | -3/Research | Scanalyzed Q-thruster | -3/Research | Scanalyzed Mic. Antimatter Reactor | -3/Research | Scanalyzed Robot Schematics ------------------ G-50 Soldier | -6/Factory | Hacked Fabricated ------------ Impulse Thruster | x2 | -6/Factory | Preloaded Mic. Fission Core | x2 | -5/Factory | Preloaded Adv. Hacking Suite | x1 | -4/Factory Adv. Hacking Suite | x1 | -4/Factory Alien Tech Used ----------------- None Achievements -------------- False Reunion Challenges ------------ None Game ------ Seed MasterTargetLattice Manual? 0 Play Time 02:36:01 Cumulative 140.6 hours Start 2024.10.25 @ 06:07:00 End 2024.10.25 @ 08:43:28 Sessions 1 Manual Loads 0 Difficulty Rogue Special Mode None Game No. 88 Rogue 52 Adventurer 36 Explorer 0 Win Type - Total 2 Types 2/0/0/0/0/0/0/0/0 Lore% 55 Gallery% 62 Achievement% 53 Wizard Run 0 Options --------- Layout 1 ASCII 0 Keyboard 0 Movement Numpad Keybinds 0 Fullscreen 1 Font 48/Smallcaps Map View 50x35 Zoom Use 0% Tactical HUD 1 Map Filters NONE Filters NONE Steam 1 RUN: 9b650f66-1cf3-4b64-9e63-896bd893cd5e